Cogmind - Beta 13 @@@ ROGUE MODE // 2024.03.18 @ 23:26:02 Player: Zon Result: Destroyed by as-94668 with Assembled Rifle Performance ------------- Evolutions (0) 0 Regions Visited (2) 400 Robots Destroyed (9) 45 Value Destroyed (141) 141 Prototype IDs (0) 0 Alien Tech Used (0) 0 Bonus (0) 0 TOTAL SCORE: 586 Bonus ------- None Cogmind --------- Core Integrity 0/250 Matter 273/300 Energy 100/100 System Corruption 4% Temperature Cool (0) Movement Treading (160) Location -10/Mines Parts ------- > --- POWER (1) -------- (None) > --- PROPULSION (2) --- Light Treads > --- UTILITY (2) ------ (None) > --- WEAPON (2) ------- (None) > --- INVENTORY (5) ---- Compact Wheel Flight Unit Peak State ------------ > --- POWER ------------ Ion Engine > --- PROPULSION ------- Aluminum Leg Aluminum Leg > --- UTILITY ---------- Small Storage Unit Signal Interpreter > --- WEAPON ----------- Particle Cannon Particle Cannon > --- INVENTORY -------- Light Ion Engine Light Treads Light Treads Wheel Compact Wheel Flight Unit Small Laser Light Assault Rifle [Rating: 9] Favorites ----------- Power Ion Engine Engine Ion Engine Propulsion Aluminum Leg Treads Light Treads Leg Aluminum Leg Utility Small Storage Unit Storage Small Storage Unit Processor Signal Interpreter Weapon Particle Cannon Energy Gun Small Laser Energy Cannon Particle Cannon Ballistic Gun Light Assault Rifle Build | -11 -10 -10 ------- Run | Yrd Mat Min Slots Evolved . | . . . Power . | . . . Propulsion . | . . . Utility . | . . . Weapon . | . . . Parts Attached 16 | 6 5 5 Power 2 | 1 . 1 Engine 2 | 1 . 1 Core . | . . . Reactor . | . . . Propulsion 6 | 2 1 3 Treads 2 | . . 2 Leg 4 | 2 1 1 Wheel . | . . . Hover . | . . . Flight . | . . . Utility 3 | 1 2 . Device . | . . . Storage 2 | 1 1 . Processor 1 | . 1 . Hackware . | . . . Protection . | . . . Artifact . | . . . Weapon 5 | 2 2 1 Energy Gun 2 | 2 . . Energy Cannon 2 | . 2 . Ballistic Gun 1 | . . 1 Ballistic Cannon . | . . . Launcher . | . . . Special Weapon . | . . . Impact Weapon . | . . . Slashing Weapon . | . . . Piercing Weapon . | . . . Special Melee Weapon . | . . . Unidentified Prototypes . | . . . Parts Lost 8 | . . 8 Power 1 | . . 1 Propulsion 4 | . . 4 Utility . | . . . Weapon 3 | . . 3 Highest Loss Streak 6 | . . 6 To Critical Strikes . | . . . Average Slot Usage (%) 83 | . 97 65 Engine 11 | . 14 7 Treads 1 | . . 3 Leg 23 | . 28 16 Storage 20 | . 21 18 Processor 2 | . 3 . Energy Gun 4 | . 7 . Energy Cannon 18 | . 19 16 Naked Turns 23 | . . 23 Heaviest Build 19 | 12 19 19 Greatest Support 40 | 20 20 40 Greatest Overweight (x) 2 | . . 2 Average Overweight (x) . | . . . Largest Inventory Capacity 8 | 8 8 8 Average Capacity 7 | 7 8 7 Most Carried 8 | 6 8 8 Average Carried 6 | 4 7 6 Final Capacity 8 | 8 8 5 Final Carried 8 | 6 8 2 Class Distribution -------------------- 100% | Mutant Dominant Class ---------------- Mutant | -10/Materials Mutant | -10/Mines Resources | -11 -10 -10 ----------- Run | Yrd Mat Min Matter Collected 320 | 241 69 10 Remotely . | . . . Salvage Created 407 | 82 306 19 Parts 17 | 2 15 . Haulers Intercepted 1 | . 1 . Recyclers Shooed 1 | . 1 . Parts Field Recycled . | . . . Retrieved Matter . | . . . Parts Self-Destructed . | . . . Prevented . | . . . Kills | -11 -10 -10 ------- Run | Yrd Mat Min Combat Hostiles Destroyed 6 | . 5 1 Guns 3 | . 3 . Cannons 3 | . 2 1 Classes Destroyed 6 | 1 4 1 Hauler 1 | . 1 . Recycler 2 | 1 1 . Watcher 1 | . 1 . Swarmer 3 | . 3 . Grunt 2 | . 2 . Assembled 1 | . . 1 Best Kill Streak 4 | 1 4 1 Combat Bots Only 3 | . 3 1 Max Kills in Single Turn 1 | 1 1 1 Gunslinging . | . . . Exploded . | . . . Melee . | . . . Uniques/NPCs Destroyed . | . . . Combat | -11 -10 -10 -------- Run | Yrd Mat Min Hostile Shots Fired 131 | . 15 116 Missed 31 | . 3 28 Damage Taken 1308 | . 112 1196 Core 256 | . . 256 Absorbed by Shields . | . . . Core Remaining (%) 100 | 100 . . Volleys Fired 35 | 7 18 10 Largest 2 | 2 2 2 Hottest 136 | 80 136 136 Shots Fired 60 | 14 32 14 Gun 35 | 14 16 5 Cannon 25 | . 16 9 Launcher . | . . . Special . | . . . Kinetic 5 | . . 5 Thermal 55 | 14 32 9 Explosive . | . . . Electromagnetic . | . . . Robot Hit Streak 11 | 8 11 2 Robot Miss Streak 3 | 1 1 3 Penetration Max . | . . . Secondary Targets . | . . . Shots Hit Robots 38 | 10 23 5 Core Hits 15 | 2 10 3 Critical Kills . | . . . Critical Parts Destroyed . | . . . Critical Strikes . | . . . Melee Attacks . | . . . Impact . | . . . Slashing . | . . . Piercing . | . . . Sneak Attacks . | . . . Combat Hostiles . | . . . Follow-up Attacks . | . . . Damage Inflicted 544 | 108 372 64 Guns 237 | 108 106 23 Cannons 307 | . 266 41 Explosions . | . . . Melee . | . . . Ramming . | . . . Kinetic 23 | . . 23 Thermal 521 | 108 372 41 Explosive . | . . . Electromagnetic . | . . . Impact . | . . . Slashing . | . . . Piercing . | . . . Highest Corruption 4 | . . 4 Average Corruption 4 | . . 4 Corruption Purged . | . . . Corruption Blocked . | . . . Effects 2 | . . 2 Message Errors 1 | . . 1 Data Loss (minor) 1 | . . 1 Overload Shots . | . . . Overflow Damage . | . . . Projectiles . | . . . Explosions . | . . . Melee . | . . . Knockbacks . | . . . Impact . | . . . Kinetic . | . . . Secondary . | . . . Self-Inflicted Damage . | . . . Shots . | . . . Rammed 1 | . . 1 Targets Rammed 1 | . . 1 Kicked . | . . . Crushed . | . . . Highest Temperature 277 | 54 240 277 Average Temperature 95 | 18 86 159 Received Heat Transfer 437 | . 15 422 Effects 1 | . 1 . Interference 1 | . 1 . Siege Activations . | . . . Robots Corrupted . | . . . Combat Hostiles . | . . . Parts Fried . | . . . Impact Corruptions . | . . . Robots Melted . | . . . Combat Hostiles . | . . . Parts Melted 2 | . 2 . Heat Transferred 1055 | 250 731 74 Parts Sabotaged . | . . . Parts Stolen . | . . . Parts Stripped . | . . . Power Chain Reactions . | . . . Alert | -11 -10 -10 ------- Run | Yrd Mat Min Peak Influence 172 | 5 172 96 Initial 66 | . 3 66 Average 67 | . 105 59 Maximum Alert Level . | . . . Low Security (%) 100 | 100 100 100 Level 1 . | . . . Level 2 . | . . . Level 3 . | . . . Level 4 . | . . . Level 5 . | . . . High Security . | . . . Max Security . | . . . Squads Dispatched 1 | . 1 . Investigation . | . . . Extermination . | . . . Reinforcement 1 | . 1 . Assault . | . . . Garrison . | . . . Intercept . | . . . Searches Triggered . | . . . Construction Impeded . | . . . Haulers Reinforced . | . . . Active Scanning Responses . | . . . Cargo Convoy Interrupts . | . . . Stealth | -11 -10 -10 --------- Run | Yrd Mat Min Distress Signals 1 | . 1 . Communications Jammed . | . . . Distress Signals . | . . . Times Spotted 25 | . 8 17 Peak Tracking Total 11 | . 4 11 Tactical Retreats 3 | . . 3 Traps | -11 -10 -10 ------- Run | Yrd Mat Min Traps Triggered . | . . . Indirectly . | . . . Trap Hack Attempts . | . . . Triggered . | . . . Disarmed . | . . . Reprogrammed . | . . . Reused . | . . . Traps Extracted . | . . . Installed . | . . . Triggered . | . . . Machines | -11 -10 -10 ---------- Run | Yrd Mat Min Machines Disabled . | . . . Max in Single Turn . | . . . Machines Repaired . | . . . Machines Dismantled . | . . . Machines Sabotaged . | . . . Overloaded Fab Kills . | . . . Hacking | -11 -10 -10 --------- Run | Yrd Mat Min Machines Accessed . | . . . Terminals . | . . . Fabricators . | . . . Repair Stations . | . . . Recycling Units . | . . . Scanalyzers . | . . . Garrison Access . | . . . Total Hacks . | . . . Successful . | . . . Failed . | . . . Catastrophic . | . . . Database Lockouts . | . . . Manual . | . . . Terminals . | . . . Fabricators . | . . . Repair Stations . | . . . Recycling Units . | . . . Scanalyzers . | . . . Garrison Access . | . . . Terminal Hacks . | . . . Fabricator Hacks . | . . . Repair Station Hacks . | . . . Recycling Unit Hacks . | . . . Scanalyzer . | . . . Garrison Access Hacks . | . . . Unauthorized Hacks . | . . . Terminals . | . . . Fabricators . | . . . Repair Stations . | . . . Recycling Units . | . . . Scanalyzers . | . . . Garrison Access . | . . . Data Cores Recovered . | . . . Used . | . . . Hacking Detections . | . . . Full Trace Events . | . . . Feedback Events . | . . . Feedback Blocked . | . . . Robot Schematics Acquired . | . . . Robots Built . | . . . Authchips . | . . . Time . | . . . Total Robot Build Rating . | . . . Part Schematics Acquired . | . . . Parts Built . | . . . Authchips . | . . . Time . | . . . Total Part Build Rating . | . . . Parts Repaired . | . . . Time . | . . . Parts Recycled . | . . . Recycled Matter . | . . . Retrieved Matter . | . . . Retrieved Components . | . . . Parts Scanalyzed . | . . . Part Schematics Acquired . | . . . Parts Damaged . | . . . Bothacking | -11 -10 -10 ------------ Run | Yrd Mat Min Used RIF Installer . | . . . Robots Hacked . | . . . Non-combat . | . . . Combat . | . . . Robot Hacks Applied . | . . . Relay Couplers Released . | . . . Fabnet Peak Effective % . | . . . Robots Rewired . | . . . Allies Hacked . | . . . Hacks Repelled . | . . . Allies | -11 -10 -10 -------- Run | Yrd Mat Min Total Allies . | . . . Largest Group . | . . . Highest-Rated Group . | . . . Highest-Rated Ally . | . . . Total Orders . | . . . Ally Attacks . | . . . Total Damage . | . . . Kills . | . . . Allies Corrupted . | . . . Allies Melted . | . . . Intel | -11 -10 -10 ------- Run | Yrd Mat Min Robot Analysis Total . | . . . Derelict Logs Recovered 1 | . . 1 Drone Launches . | . . . Drone Recoveries . | . . . Exploration | -11 -10 -10 ------------- Run | Yrd Mat Min Turns Passed 541 | 117 246 178 Spaces Moved 342 | 69 147 126 Core 36 | 3 . 33 Treads 12 | . . 12 Legs 294 | 66 147 81 Wheels . | . . . Hover . | . . . Flight . | . . . Fastest Speed 50 | 50 120 50 Average Speed 115 | 116 120 108 Slowest Speed 190 | 120 120 190 Overloaded Moves . | . . . Propulsion Burnouts . | . . . Robots Hopped . | . . . Cave-ins Triggered . | . . . Exploration Rate (%) 15 | 4 27 15 Regions Visited 2 Branch Regions 1 Pre-discovered Areas . | . . . Known Exits Taken . | . . . Unknown Exits Taken 2 | 1 1 . Scrap Searched . | . . . Spaces Dug . | . . . Terrain Destroyed . | . . . Melee . | . . . Projectile . | . . . AOE . | . . . Terrain Rammed . | . . . Walls Destroyed . | . . . Machines Disabled . | . . . Actions | -11 -10 -10 --------- Run | Yrd Mat Min Total 427 | 90 184 153 Wait 19 | . 9 10 Move 340 | 68 146 126 Hop . | . . . Pick Up 11 | 9 2 . Fast Attach 7 | 3 4 . Attach 8 | 3 . 5 Detach . | . . . Swap 1 | . 1 . Drop 4 | . 4 . Fire 35 | 7 18 10 Melee . | . . . Ram . | . . . Kick . | . . . Crush 1 | . . 1 Escape Stasis . | . . . Rewire 1 | . . 1 Trap . | . . . Miscellaneous . | . . . Route ------- -11/Scrapyard -10/Materials -10/Mines History --------- Turn | Location | Event 6 | -11/Scrapyard | Discovered new exit (range 16) 118 | -11/Scrapyard | Entered Materials 301 | -10/Materials | Build established: Mutant 320 | -10/Materials | Discovered new exit (range 8) 364 | -10/Materials | Entered Mines 388 | -10/Mines | Assembled infested the area 393 | -10/Mines | Assisted by a Guerilla fighting off Assembled 486 | -10/Mines | Released all parts (3) 509 | -10/Mines | Core integrity fell below 50% 514 | -10/Mines | Lost 6 parts (1p3n2w) 537 | -10/Mines | Core integrity fell below 20% 542 | -10/Mines | Destroyed by as-94668 with Assembled Rifle Last Messages --------------- 00463_ G-47 Trooper destroyed. 00464_ Acquired 10 matter. 00466_ Ion Engine destroyed. 00472_ G-34 Mercenary system corrupted by crushing effect. 00472_ G-34 Mercenary IFF system glitched. 00472_ as-72519 destroyed. 00473_ G-34 Mercenary system terminally corrupted. 00475_ #YOGUSTA#MBQYC1RL19VGXEV/ 00482_ Aluminum Leg destroyed. 00483_ Particle Cannon destroyed. 00486_ Released Lgt. Ion Engine. 00486_ Released Sml. Battery. 00486_ Released Sml. Storage Unit. 00515_ Laser Drill disabled. 00521_ Lgt. Assault Rifle destroyed. 00521_ Slammed into as-69076. 00529_ System corrupted: Component data lost. 00536_ Lgt. Treads destroyed. Map ----- +----------------------------------------------------+ | | | | | | | | | | | | | | | | | | | | | ??????????????????????????????????????????? | | ??????????????????????????????????????????? | | ??????????????????????????????????????????? | | ??????????????###########?????????????????? | | ??????????????# #?????????????????? | | ??????????????# #?????????????????? | | ??????????????# #?????????????????? | | ??????????????# "" """ #?????????????????? | | ??????????????# """ """ #?????????????????? | | ??????????????# """ """ #?????????????????? | | ??????????????# #?????????????????? | | ??????????????# #?????????????????? | | ??????????????####### ##?????????????????? | | ????????????????????#a ##############?????? | | ????????????????????# aa a #?????? | | ????????????????????# @ #?????? | | ????????????????????############## #?????? | | ?????????????????????????????????# #?????? | | ???????????????????????????????### #?????? | | ??????????????????????????????## ####??? | | ?????????????????????????????## ##?? | | ????????????%=% ?????????????# #?? | | ??????????????#% ########?# #?? | | ??????????????# % ]#?## ##?? | | ??????????????# %[%##?## =*! ##??? | | ??????????????# ! ########%"#??## ! ##???? | | ??????????????#????????## %#??## ##???? | | ???????????????????????# #??# ###?? | | ???????????????????????# #### #?? | | ???????????????????????## ## #? | | ????????????????????????## #? | | ?????????????????????????## ### ##? | | ??????????????????????????## ##??###?? | | ???????????????????????????##"#####???????? | | ????????????????????????????###???????????? | | ??????????????????????????????????????????? | | ??????????????????????????????????????????? | | ??????????????????????????????????????????? | | ??????????????????????????????????????????? | | ??????????????????????????????????????????? | +----------------------------------------------------+ Best States ------------- Heat Dissipation 25 Energy Generation 10 Energy Capacity 350 Matter Stores 300 Matter Capacity 300 Sight Range 16 Terrain Scan Density 10 Evasion (%) 55 Recoil Reduction 2 Item Schematics ----------------- None Robot Schematics ------------------ None Fabricated ------------ Nothing Alien Tech Used ----------------- None Achievements -------------- None Challenges ------------ None Game ------ Seed PhasingDecoyCharge Manual? 0 Play Time 00:11:12 Cumulative 24.3 hours Start 2024.03.18 @ 23:13:38 End 2024.03.18 @ 23:26:02 Sessions 1 Manual Loads 0 Difficulty Rogue Special Mode None Game No. 15 Rogue 15 Adventurer 0 Explorer 0 Win Type - Total 0 Types 0/0/0/0/0/0/0/0/0 Lore% 23 Gallery% 25 Achievement% 21 Wizard Run 0 Options --------- Layout 1 ASCII 0 Keyboard 0 Movement Mouse Keybinds 0 Fullscreen 1 Font 48/Smallcaps Map View 50x35 Zoom Use 0% Tactical HUD 1 Map Filters NONE Filters NONE Steam 1 RUN: 91a26e48-32af-42b6-a5dd-9d0901527dc0